[Event "Early-Titled-Tuesday-Blitz-April-16-2024"]
[Site "Chess.com"]
[Date "2024.04.16"]
[Round "3"]
[White "Andrei_Skvortsov"]
[Black "AryanTari"]
[Result "0-1"]
[WhiteElo "2653"]
[BlackElo "2939"]
[TimeControl "180+1"]
[EndTime "8:28:29 PDT"]
[Termination "AryanTari won on time"]

1. e4 {[%clk 0:03:00.9]} 1... e5 {[%clk 0:02:57.3]} 2. d4 {[%clk 0:02:56.1]}
2... exd4 {[%clk 0:02:57.1]} 3. Qxd4 {[%clk 0:02:57]} 3... Nc6 {[%clk
0:02:56.7]} 4. Qd3 {[%clk 0:02:57.2]} 4... Nf6 {[%clk 0:02:54.9]} 5. Nc3 {[%clk
0:02:57.7]} 5... Bc5 {[%clk 0:02:48.4]} 6. Qg3 {[%clk 0:02:55]} 6... O-O {[%clk
0:02:43.7]} 7. Bg5 {[%clk 0:02:53.7]} 7... Be7 {[%clk 0:02:17.7]} 8. Be3 {[%clk
0:02:31.9]} 8... Bb4 {[%clk 0:01:50.4]} 9. Bd3 {[%clk 0:02:16.6]} 9... d5 {[%clk
0:01:43.5]} 10. exd5 {[%clk 0:01:24.8]} 10... Nxd5 {[%clk 0:01:38.8]} 11. Bh6
{[%clk 0:00:54.2]} 11... Qf6 {[%clk 0:01:27.8]} 12. Bg5 {[%clk 0:00:54.3]} 12...
Bxc3+ {[%clk 0:01:26.1]} 13. Kf1 {[%clk 0:00:54.9]} 13... Be5 {[%clk 0:01:09.4]}
14. Qh4 {[%clk 0:00:36.1]} 14... Ne3+ {[%clk 0:01:09.6]} 15. Ke2 {[%clk
0:00:35.4]} 15... Nf5 {[%clk 0:00:58.7]} 16. Bxf6 {[%clk 0:00:32.2]} 16... Nxh4
{[%clk 0:00:58.7]} 17. Bxh4 {[%clk 0:00:33.1]} 17... Bxb2 {[%clk 0:00:58.8]} 18.
Rb1 {[%clk 0:00:33.5]} 18... Bd4 {[%clk 0:00:47.7]} 19. Nf3 {[%clk 0:00:32.3]}
19... Bb6 {[%clk 0:00:46]} 20. Kd2 {[%clk 0:00:28.3]} 20... Bg4 {[%clk
0:00:41.5]} 21. Ng5 {[%clk 0:00:21.4]} 21... h6 {[%clk 0:00:39.1]} 22. Ne4
{[%clk 0:00:20.8]} 22... Rfe8 {[%clk 0:00:37.4]} 23. f3 {[%clk 0:00:19.8]} 23...
Be6 {[%clk 0:00:37.3]} 24. a4 {[%clk 0:00:17.2]} 24... Ne5 {[%clk 0:00:36.3]}
25. Bb5 {[%clk 0:00:12.1]} 25... c6 {[%clk 0:00:31.6]} 26. Be2 {[%clk
0:00:12.3]} 26... f5 {[%clk 0:00:28.6]} 27. Nc3 {[%clk 0:00:08.1]} 27... g5
{[%clk 0:00:28.5]} 28. Be1 {[%clk 0:00:07.7]} 28... Bc4 {[%clk 0:00:24.2]} 29.
Bxc4+ {[%clk 0:00:06.5]} 29... Nxc4+ {[%clk 0:00:25.1]} 30. Kd3 {[%clk
0:00:06.2]} 30... Na3 {[%clk 0:00:25.1]} 0-1

[Event "Early-Titled-Tuesday-Blitz-April-16-2024"]
[Site "Chess.com"]
[Date "2024.04.16"]
[Round "3"]
[White "bazar-wokzal"]
[Black "NewYearGirl"]
[Result "0-1"]
[WhiteElo "2573"]
[BlackElo "2375"]
[TimeControl "180+1"]
[EndTime "8:28:29 PDT"]
[Termination "NewYearGirl won by checkmate"]

1. e4 {[%clk 0:03:00.9]} 1... c5 {[%clk 0:03:00]} 2. c3 {[%clk 0:03:00.7]} 2...
d5 {[%clk 0:02:59.7]} 3. exd5 {[%clk 0:03:00.4]} 3... Nf6 {[%clk 0:03:00.2]} 4.
Bb5+ {[%clk 0:02:59.4]} 4... Nbd7 {[%clk 0:02:58.7]} 5. c4 {[%clk 0:02:58]} 5...
a6 {[%clk 0:02:58.8]} 6. Bxd7+ {[%clk 0:02:57.2]} 6... Bxd7 {[%clk 0:02:56.4]}
7. Nf3 {[%clk 0:02:55.8]} 7... e6 {[%clk 0:02:56.7]} 8. dxe6 {[%clk 0:02:53.5]}
8... Bxe6 {[%clk 0:02:56.9]} 9. d3 {[%clk 0:02:51.4]} 9... Be7 {[%clk
0:02:52.4]} 10. O-O {[%clk 0:02:50.6]} 10... O-O {[%clk 0:02:52.6]} 11. Nc3
{[%clk 0:02:49.9]} 11... Qc7 {[%clk 0:02:45.1]} 12. h3 {[%clk 0:02:42.9]} 12...
Rad8 {[%clk 0:02:44.7]} 13. Qc2 {[%clk 0:02:38.4]} 13... Nd7 {[%clk 0:02:33.5]}
14. Bg5 {[%clk 0:02:33.1]} 14... Nb8 {[%clk 0:02:31.7]} 15. Rfe1 {[%clk
0:02:17.8]} 15... Nc6 {[%clk 0:02:17.5]} 16. Bxe7 {[%clk 0:02:15.8]} 16... Qxe7
{[%clk 0:02:17.7]} 17. Nd5 {[%clk 0:02:14.5]} 17... Qd7 {[%clk 0:02:18.1]} 18.
Nf4 {[%clk 0:02:12.5]} 18... Bf5 {[%clk 0:01:59.6]} 19. Rad1 {[%clk 0:02:08.5]}
19... Nb4 {[%clk 0:01:55.9]} 20. Qb3 {[%clk 0:02:07.6]} 20... Qc7 {[%clk
0:01:50.3]} 21. g3 {[%clk 0:01:49.5]} 21... Nc6 {[%clk 0:01:42.5]} 22. Nd5
{[%clk 0:01:39.1]} 22... Rxd5 {[%clk 0:01:21.1]} 23. cxd5 {[%clk 0:01:38.5]}
23... Nb4 {[%clk 0:01:21.2]} 24. g4 {[%clk 0:01:34.4]} 24... Qf4 {[%clk
0:01:15.1]} 25. Ne5 {[%clk 0:01:13.7]} 25... f6 {[%clk 0:01:11]} 26. a3 {[%clk
0:00:42.8]} 26... fxe5 {[%clk 0:01:07.2]} 27. axb4 {[%clk 0:00:42.1]} 27... Bxg4
{[%clk 0:01:07.3]} 28. d6+ {[%clk 0:00:23.6]} 28... Kh8 {[%clk 0:01:05]} 29. Qc2
{[%clk 0:00:15.3]} 29... Bxh3 {[%clk 0:01:03.2]} 30. f3 {[%clk 0:00:10.2]} 30...
Qg3+ {[%clk 0:00:59.7]} 31. Kh1 {[%clk 0:00:10.3]} 31... Qxf3+ {[%clk
0:00:59.5]} 32. Kh2 {[%clk 0:00:09.9]} 32... Bd7 {[%clk 0:00:53]} 33. Qg2 {[%clk
0:00:07.3]} 33... Qh5+ {[%clk 0:00:50.8]} 34. Kg1 {[%clk 0:00:07.7]} 34... Bc6
{[%clk 0:00:50.7]} 35. Qg3 {[%clk 0:00:06.9]} 35... Rf3 {[%clk 0:00:46.3]} 36.
Qxe5 {[%clk 0:00:03.4]} 36... Qg4+ {[%clk 0:00:41.2]} 37. Kh2 {[%clk 0:00:02.5]}
37... Rh3# {[%clk 0:00:41.3]} 0-1

[Event "Early-Titled-Tuesday-Blitz-April-16-2024"]
[Site "Chess.com"]
[Date "2024.04.16"]
[Round "3"]
[White "ProtectiveCarrot"]
[Black "Cheer_Down"]
[Result "0-1"]
[WhiteElo "2277"]
[BlackElo "2498"]
[TimeControl "180+1"]
[EndTime "8:28:29 PDT"]
[Termination "Cheer_Down won by checkmate"]

1. e4 {[%clk 0:03:00.9]} 1... e5 {[%clk 0:02:57.6]} 2. Nf3 {[%clk 0:03:00.9]}
2... Nc6 {[%clk 0:02:57.3]} 3. Bb5 {[%clk 0:03:01.5]} 3... a6 {[%clk 0:02:57.2]}
4. Ba4 {[%clk 0:03:01.7]} 4... Nf6 {[%clk 0:02:57]} 5. O-O {[%clk 0:03:01.6]}
5... Be7 {[%clk 0:02:57]} 6. d3 {[%clk 0:03:02]} 6... b5 {[%clk 0:02:52.4]} 7.
Bb3 {[%clk 0:03:02.1]} 7... d6 {[%clk 0:02:51.9]} 8. a3 {[%clk 0:03:01.7]} 8...
Na5 {[%clk 0:02:50.5]} 9. Ba2 {[%clk 0:03:01.6]} 9... c5 {[%clk 0:02:49.4]} 10.
Nc3 {[%clk 0:02:53.2]} 10... Be6 {[%clk 0:02:48.4]} 11. b4 {[%clk 0:02:43.3]}
11... cxb4 {[%clk 0:02:43.6]} 12. axb4 {[%clk 0:02:42.3]} 12... Nc6 {[%clk
0:02:42.5]} 13. Nd5 {[%clk 0:02:41.3]} 13... Bxd5 {[%clk 0:02:24.4]} 14. exd5
{[%clk 0:02:30.1]} 14... Nxb4 {[%clk 0:02:19.7]} 15. Bb3 {[%clk 0:02:25.2]}
15... O-O {[%clk 0:02:16.4]} 16. c4 {[%clk 0:02:20]} 16... bxc4 {[%clk 0:02:07]}
17. dxc4 {[%clk 0:02:20.9]} 17... a5 {[%clk 0:02:07]} 18. Bd2 {[%clk 0:02:06.1]}
18... Nd7 {[%clk 0:02:05]} 19. Ba4 {[%clk 0:01:50.4]} 19... Nc5 {[%clk
0:02:04.1]} 20. Bb5 {[%clk 0:01:50.8]} 20... f5 {[%clk 0:01:47.4]} 21. Qb1
{[%clk 0:01:29.8]} 21... Nbd3 {[%clk 0:01:40.3]} 22. Bc3 {[%clk 0:01:22.4]}
22... Bf6 {[%clk 0:01:36.4]} 23. Bc6 {[%clk 0:01:05.1]} 23... Ra7 {[%clk
0:01:27.6]} 24. Qb5 {[%clk 0:00:59.3]} 24... g5 {[%clk 0:01:12.7]} 25. Bxa5
{[%clk 0:00:54.6]} 25... Qe7 {[%clk 0:01:11.6]} 26. Bb6 {[%clk 0:00:53.5]} 26...
Rxa1 {[%clk 0:01:10.8]} 27. Rxa1 {[%clk 0:00:54.4]} 27... Bg7 {[%clk 0:00:51.8]}
28. Ra7 {[%clk 0:00:53.9]} 28... Qf6 {[%clk 0:00:51.9]} 29. h4 {[%clk
0:00:21.1]} 29... gxh4 {[%clk 0:00:48.3]} 30. Bd7 {[%clk 0:00:16.3]} 30... e4
{[%clk 0:00:46]} 31. Nd2 {[%clk 0:00:13.8]} 31... Qd4 {[%clk 0:00:44.1]} 32.
Be6+ {[%clk 0:00:07.7]} 32... Kh8 {[%clk 0:00:42.2]} 33. Bxc5 {[%clk 0:00:06.3]}
33... dxc5 {[%clk 0:00:41.5]} 34. Qd7 {[%clk 0:00:03.5]} 34... Qxf2+ {[%clk
0:00:36.2]} 35. Kh1 {[%clk 0:00:04.1]} 35... Qe1+ {[%clk 0:00:33.7]} 36. Kh2
{[%clk 0:00:04.1]} 36... Be5+ {[%clk 0:00:34]} 37. Kh3 {[%clk 0:00:04.2]} 37...
Qg3# {[%clk 0:00:34]} 0-1

[Event "Early-Titled-Tuesday-Blitz-April-16-2024"]
[Site "Chess.com"]
[Date "2024.04.16"]
[Round "3"]
[White "Tol_Tol"]
[Black "dontcatchmeifyoucant"]
[Result "1-0"]
[WhiteElo "2428"]
[BlackElo "2066"]
[TimeControl "180+1"]
[EndTime "8:28:29 PDT"]
[Termination "Tol_Tol won by resignation"]

1. d4 {[%clk 0:03:00.9]} 1... Nf6 {[%clk 0:03:00]} 2. c4 {[%clk 0:03:00.6]} 2...
e6 {[%clk 0:03:00.5]} 3. Nc3 {[%clk 0:03:01]} 3... Bb4 {[%clk 0:03:00.6]} 4. e3
{[%clk 0:03:01.6]} 4... O-O {[%clk 0:02:55.5]} 5. Bd3 {[%clk 0:03:02.2]} 5... d5
{[%clk 0:02:56.1]} 6. Nf3 {[%clk 0:03:02.3]} 6... c5 {[%clk 0:02:49.8]} 7. O-O
{[%clk 0:03:00.1]} 7... Nc6 {[%clk 0:02:44.4]} 8. a3 {[%clk 0:03:00]} 8... Bxc3
{[%clk 0:02:43.5]} 9. bxc3 {[%clk 0:03:00.9]} 9... b6 {[%clk 0:02:26.4]} 10.
cxd5 {[%clk 0:02:59.8]} 10... exd5 {[%clk 0:02:24]} 11. Ne5 {[%clk 0:02:59.1]}
11... Qc7 {[%clk 0:02:01.7]} 12. f4 {[%clk 0:02:51.9]} 12... Ne4 {[%clk
0:02:01.7]} 13. c4 {[%clk 0:02:35]} 13... Nxe5 {[%clk 0:01:45]} 14. fxe5 {[%clk
0:02:29.7]} 14... Qc6 {[%clk 0:01:26.7]} 15. Bxe4 {[%clk 0:02:27.4]} 15... dxe4
{[%clk 0:01:26.3]} 16. d5 {[%clk 0:02:28]} 16... Qg6 {[%clk 0:01:23.2]} 17. Rf4
{[%clk 0:02:21]} 17... f5 {[%clk 0:00:38.9]} 18. e6 {[%clk 0:02:10.3]} 18... Qf6
{[%clk 0:00:32.9]} 19. Ra2 {[%clk 0:02:04.1]} 19... g5 {[%clk 0:00:33.2]} 20.
Rf1 {[%clk 0:02:02.7]} 20... Qg6 {[%clk 0:00:29.4]} 21. Raf2 {[%clk 0:02:00.7]}
21... Bb7 {[%clk 0:00:25.5]} 22. a4 {[%clk 0:01:50.8]} 22... Rae8 {[%clk
0:00:24]} 23. Bb2 {[%clk 0:01:49.2]} 23... Ba6 {[%clk 0:00:21.4]} 24. Qc2 {[%clk
0:01:48]} 24... h5 {[%clk 0:00:18.8]} 25. Qc3 {[%clk 0:01:48.1]} 25... Kh7
{[%clk 0:00:18.9]} 26. Rc1 {[%clk 0:00:46.6]} 26... f4 {[%clk 0:00:18.9]} 27.
Rcf1 {[%clk 0:00:38.3]} 27... Rf5 {[%clk 0:00:09.7]} 28. exf4 {[%clk 0:00:34.6]}
28... gxf4 {[%clk 0:00:10.6]} 29. Rxf4 {[%clk 0:00:34.1]} 29... Rg8 {[%clk
0:00:11.3]} 30. g3 {[%clk 0:00:28.9]} 30... Rxf4 {[%clk 0:00:10.5]} 31. Rxf4
{[%clk 0:00:28.9]} 31... Kh6 {[%clk 0:00:06.2]} 32. Rf6 {[%clk 0:00:27.1]} 1-0

[Event "Early-Titled-Tuesday-Blitz-April-16-2024"]
[Site "Chess.com"]
[Date "2024.04.16"]
[Round "3"]
[White "Kotlyar_K"]
[Black "ChadBiryani"]
[Result "0-1"]
[WhiteElo "2690"]
[BlackElo "2476"]
[TimeControl "180+1"]
[EndTime "8:28:33 PDT"]
[Termination "ChadBiryani won on time"]

1. d4 {[%clk 0:03:00.9]} 1... f5 {[%clk 0:02:59.7]} 2. c4 {[%clk 0:02:59.7]}
2... Nf6 {[%clk 0:02:59.9]} 3. g3 {[%clk 0:03:00.2]} 3... g6 {[%clk 0:02:58.8]}
4. Bg2 {[%clk 0:03:00.6]} 4... Bg7 {[%clk 0:02:59.5]} 5. Nf3 {[%clk 0:02:34]}
5... O-O {[%clk 0:02:56.6]} 6. O-O {[%clk 0:02:33.8]} 6... d6 {[%clk 0:02:56.3]}
7. Nc3 {[%clk 0:02:32.5]} 7... c6 {[%clk 0:02:56.2]} 8. Rb1 {[%clk 0:02:28.4]}
8... a5 {[%clk 0:02:54.2]} 9. Qb3 {[%clk 0:02:24.5]} 9... e6 {[%clk 0:02:51.1]}
10. Bf4 {[%clk 0:02:11]} 10... Na6 {[%clk 0:02:44.7]} 11. Rfd1 {[%clk
0:02:02.9]} 11... Qe7 {[%clk 0:02:33.6]} 12. Na4 {[%clk 0:01:53.4]} 12... h6
{[%clk 0:02:27.7]} 13. Nb6 {[%clk 0:01:43.1]} 13... Ra7 {[%clk 0:02:17.8]} 14.
Nxc8 {[%clk 0:01:34.2]} 14... Rxc8 {[%clk 0:02:18.7]} 15. Qb6 {[%clk 0:01:30.7]}
15... Raa8 {[%clk 0:02:14.3]} 16. Qxa5 {[%clk 0:01:27.8]} 16... g5 {[%clk
0:02:12.2]} 17. Be3 {[%clk 0:01:13.2]} 17... Ng4 {[%clk 0:01:56.8]} 18. Bd2
{[%clk 0:01:08.6]} 18... Nc5 {[%clk 0:01:52.6]} 19. Qb6 {[%clk 0:00:53.6]} 19...
Ne4 {[%clk 0:01:51.5]} 20. Be1 {[%clk 0:00:53]} 20... Rxa2 {[%clk 0:01:47.5]}
21. h3 {[%clk 0:00:52.1]} 21... Ngf6 {[%clk 0:01:45.8]} 22. Qb3 {[%clk
0:00:49.6]} 22... Rca8 {[%clk 0:01:44]} 23. Rbc1 {[%clk 0:00:44.9]} 23... Kh8
{[%clk 0:01:32.4]} 24. c5 {[%clk 0:00:39.3]} 24... dxc5 {[%clk 0:01:26.4]} 25.
dxc5 {[%clk 0:00:40.2]} 25... Nd5 {[%clk 0:01:27]} 26. Nd4 {[%clk 0:00:29.7]}
26... Nxc5 {[%clk 0:01:21.9]} 27. Qc4 {[%clk 0:00:18.8]} 27... Nd7 {[%clk
0:01:21]} 28. Qb3 {[%clk 0:00:12.1]} 28... Nc5 {[%clk 0:01:14.6]} 29. Qc4 {[%clk
0:00:11.7]} 29... Nd7 {[%clk 0:01:15.2]} 30. Qb3 {[%clk 0:00:10.8]} 30... N7f6
{[%clk 0:01:07.7]} 31. Qc2 {[%clk 0:00:06.2]} 31... f4 {[%clk 0:01:02.5]} 32. g4
{[%clk 0:00:04.9]} 32... Nd7 {[%clk 0:01:00.3]} 33. Qe4 {[%clk 0:00:03.6]} 33...
Nc5 {[%clk 0:00:56.2]} 34. Qc2 {[%clk 0:00:03.2]} 34... Na4 {[%clk 0:00:47.7]}
35. Qe4 {[%clk 0:00:02.4]} 35... Rxb2 {[%clk 0:00:45.1]} 36. Rc2 {[%clk
0:00:02.1]} 36... Nc5 {[%clk 0:00:42.9]} 0-1

[Event "Early-Titled-Tuesday-Blitz-April-16-2024"]
[Site "Chess.com"]
[Date "2024.04.16"]
[Round "3"]
[White "SaiAgni_98"]
[Black "ferdipy"]
[Result "0-1"]
[WhiteElo "2481"]
[BlackElo "2273"]
[TimeControl "180+1"]
[EndTime "8:28:33 PDT"]
[Termination "ferdipy won on time"]

1. e4 {[%clk 0:03:00.9]} 1... e6 {[%clk 0:03:00]} 2. d4 {[%clk 0:02:56.5]} 2...
d5 {[%clk 0:03:00.4]} 3. Nc3 {[%clk 0:02:55.6]} 3... Bb4 {[%clk 0:02:59.9]} 4.
Ne2 {[%clk 0:02:52.2]} 4... Nf6 {[%clk 0:02:59.2]} 5. e5 {[%clk 0:02:37.8]} 5...
Nfd7 {[%clk 0:02:58.6]} 6. a3 {[%clk 0:02:37.3]} 6... Be7 {[%clk 0:02:59]} 7. f4
{[%clk 0:02:19.8]} 7... a6 {[%clk 0:02:53.3]} 8. Be3 {[%clk 0:02:20]} 8... c5
{[%clk 0:02:50.8]} 9. Qd2 {[%clk 0:02:15.7]} 9... Nc6 {[%clk 0:02:50.9]} 10. Nd1
{[%clk 0:02:15.4]} 10... cxd4 {[%clk 0:02:46.6]} 11. Nxd4 {[%clk 0:02:14.9]}
11... Nxd4 {[%clk 0:02:46.2]} 12. Bxd4 {[%clk 0:02:15.1]} 12... Nc5 {[%clk
0:02:46.7]} 13. Nf2 {[%clk 0:02:11.6]} 13... Bd7 {[%clk 0:02:46.3]} 14. Be2
{[%clk 0:02:08.1]} 14... Rc8 {[%clk 0:02:46.7]} 15. O-O {[%clk 0:02:04.2]} 15...
O-O {[%clk 0:02:41.6]} 16. Rad1 {[%clk 0:02:03.2]} 16... b5 {[%clk 0:02:40.1]}
17. b4 {[%clk 0:01:39.3]} 17... Na4 {[%clk 0:02:38.7]} 18. Bd3 {[%clk 0:01:35]}
18... Nb6 {[%clk 0:02:31.5]} 19. Ra1 {[%clk 0:01:23.8]} 19... Nc4 {[%clk
0:02:30.2]} 20. Qe2 {[%clk 0:01:23.3]} 20... f6 {[%clk 0:02:24.3]} 21. Qh5
{[%clk 0:01:05.8]} 21... f5 {[%clk 0:02:15.7]} 22. Qe2 {[%clk 0:01:05.4]} 22...
Be8 {[%clk 0:02:11.3]} 23. c3 {[%clk 0:01:00.5]} 23... Kh8 {[%clk 0:02:00.8]}
24. Kh1 {[%clk 0:01:00.3]} 24... Rg8 {[%clk 0:02:00.9]} 25. Rg1 {[%clk
0:00:59.4]} 25... g5 {[%clk 0:01:58.6]} 26. fxg5 {[%clk 0:00:52.6]} 26... Rxg5
{[%clk 0:01:59.5]} 27. Nh3 {[%clk 0:00:43.2]} 27... Rg4 {[%clk 0:01:55.4]} 28.
Raf1 {[%clk 0:00:34.6]} 28... Bf7 {[%clk 0:01:48.7]} 29. Bxf5 {[%clk 0:00:30.2]}
29... exf5 {[%clk 0:01:47.2]} 30. e6+ {[%clk 0:00:30.8]} 30... Bf6 {[%clk
0:01:42.8]} 31. exf7 {[%clk 0:00:31]} 31... Bxd4 {[%clk 0:01:36]} 32. Rxf5
{[%clk 0:00:28.7]} 32... Re4 {[%clk 0:01:30.1]} 33. f8=Q+ {[%clk 0:00:27.4]}
33... Qxf8 {[%clk 0:01:28.5]} 34. Rxf8+ {[%clk 0:00:27.9]} 34... Rxf8 {[%clk
0:01:28.6]} 35. Qxe4 {[%clk 0:00:11]} 35... dxe4 {[%clk 0:01:28.2]} 36. cxd4
{[%clk 0:00:11.9]} 36... e3 {[%clk 0:01:19.8]} 37. Re1 {[%clk 0:00:11.9]} 37...
Rd8 {[%clk 0:01:13.5]} 38. Nf4 {[%clk 0:00:10.2]} 38... Rxd4 {[%clk 0:01:13.1]}
39. g3 {[%clk 0:00:10.9]} 39... Rd2 {[%clk 0:01:10.6]} 40. Re2 {[%clk
0:00:10.4]} 40... Rxe2 {[%clk 0:01:09.4]} 41. Nxe2 {[%clk 0:00:11]} 41... Nxa3
{[%clk 0:01:09.8]} 42. Kg2 {[%clk 0:00:08.7]} 42... Kg7 {[%clk 0:01:08.2]} 43.
Kf3 {[%clk 0:00:08.5]} 43... Kf6 {[%clk 0:01:06.7]} 0-1

[Event "Early-Titled-Tuesday-Blitz-April-16-2024"]
[Site "Chess.com"]
[Date "2024.04.16"]
[Round "3"]
[White "ragnaroek66"]
[Black "GelmanAlexander"]
[Result "1-0"]
[WhiteElo "2521"]
[BlackElo "2673"]
[TimeControl "180+1"]
[EndTime "8:28:34 PDT"]
[Termination "ragnaroek66 won on time"]

1. d4 {[%clk 0:03:00.9]} 1... Nf6 {[%clk 0:02:57.7]} 2. c4 {[%clk 0:03:01]} 2...
c5 {[%clk 0:02:57.7]} 3. d5 {[%clk 0:03:00.4]} 3... b5 {[%clk 0:02:58.2]} 4.
cxb5 {[%clk 0:03:01.3]} 4... a6 {[%clk 0:02:58.6]} 5. bxa6 {[%clk 0:03:02.2]}
5... e6 {[%clk 0:02:58.9]} 6. Nc3 {[%clk 0:03:02.8]} 6... exd5 {[%clk 0:02:59]}
7. Nxd5 {[%clk 0:03:03.4]} 7... Nxa6 {[%clk 0:02:59.2]} 8. e4 {[%clk 0:03:02.6]}
8... Nxd5 {[%clk 0:02:58.8]} 9. Qxd5 {[%clk 0:03:01.5]} 9... Nc7 {[%clk
0:02:58.7]} 10. Qd1 {[%clk 0:02:49.4]} 10... Bb7 {[%clk 0:02:58.2]} 11. Bd3
{[%clk 0:02:45.2]} 11... d5 {[%clk 0:02:57.9]} 12. exd5 {[%clk 0:02:45.2]} 12...
Qxd5 {[%clk 0:02:57.4]} 13. Nf3 {[%clk 0:02:44.1]} 13... O-O-O {[%clk
0:02:53.5]} 14. Be2 {[%clk 0:02:40]} 14... Qe4 {[%clk 0:02:51.9]} 15. Qb3 {[%clk
0:02:34.9]} 15... c4 {[%clk 0:02:51.6]} 16. Qe3 {[%clk 0:02:34.4]} 16... Bb4+
{[%clk 0:02:46.6]} 17. Bd2 {[%clk 0:02:27.4]} 17... Rxd2 {[%clk 0:02:35.5]} 18.
Nxd2 {[%clk 0:02:25.1]} 18... Qxg2 {[%clk 0:01:38.6]} 19. O-O-O {[%clk
0:01:58.1]} 19... Re8 {[%clk 0:01:29.9]} 20. Qb6 {[%clk 0:01:23.3]} 20... Nd5
{[%clk 0:00:50.1]} 21. Qd4 {[%clk 0:01:01.4]} 21... c3 {[%clk 0:00:43]} 22. bxc3
{[%clk 0:00:44.3]} 22... Ba3+ {[%clk 0:00:32.5]} 23. Kc2 {[%clk 0:00:32.8]}
23... Rxe2 {[%clk 0:00:08.6]} 24. Qc4+ {[%clk 0:00:32.3]} 24... Kb8 {[%clk
0:00:09.1]} 25. Qxe2 {[%clk 0:00:32.4]} 25... Qg6+ {[%clk 0:00:06.7]} 26. Qd3
{[%clk 0:00:20]} 26... Qc6 {[%clk 0:00:06.8]} 27. Qc4 {[%clk 0:00:16.2]} 27...
Qg6+ {[%clk 0:00:04.6]} 28. Kb3 {[%clk 0:00:13.1]} 1-0

[Event "Early-Titled-Tuesday-Blitz-April-16-2024"]
[Site "Chess.com"]
[Date "2024.04.16"]
[Round "3"]
[White "Viktoker"]
[Black "ArmanGhevondyanchess"]
[Result "1/2-1/2"]
[WhiteElo "2453"]
[BlackElo "2614"]
[TimeControl "180+1"]
[EndTime "8:28:36 PDT"]
[Termination "Game drawn by repetition"]

1. d4 {[%clk 0:02:55.2]} 1... Nf6 {[%clk 0:02:26.3]} 2. c4 {[%clk 0:02:53.9]}
2... g6 {[%clk 0:02:16.4]} 3. Nf3 {[%clk 0:02:54]} 3... d5 {[%clk 0:02:13.9]} 4.
Nc3 {[%clk 0:02:49.2]} 4... Bg7 {[%clk 0:02:13.9]} 5. cxd5 {[%clk 0:02:48.1]}
5... Nxd5 {[%clk 0:02:14.8]} 6. e4 {[%clk 0:02:47.6]} 6... Nxc3 {[%clk
0:02:14.9]} 7. bxc3 {[%clk 0:02:48.5]} 7... O-O {[%clk 0:02:15.6]} 8. Be3 {[%clk
0:02:41.3]} 8... c5 {[%clk 0:02:15.5]} 9. Rc1 {[%clk 0:02:40]} 9... Qa5 {[%clk
0:02:10.8]} 10. Qd2 {[%clk 0:02:39]} 10... cxd4 {[%clk 0:02:06.2]} 11. cxd4
{[%clk 0:02:39.9]} 11... Qxd2+ {[%clk 0:02:04.4]} 12. Kxd2 {[%clk 0:02:40.8]}
12... Rd8 {[%clk 0:02:03.8]} 13. Bb5 {[%clk 0:02:02.6]} 13... a6 {[%clk
0:01:59.2]} 14. Ba4 {[%clk 0:01:39.6]} 14... Nc6 {[%clk 0:01:56.9]} 15. Bxc6
{[%clk 0:01:37.7]} 15... bxc6 {[%clk 0:01:56.9]} 16. Ke2 {[%clk 0:01:37.7]}
16... Be6 {[%clk 0:01:51.2]} 17. Rxc6 {[%clk 0:01:33.3]} 17... Bxa2 {[%clk
0:01:48.4]} 18. Ra1 {[%clk 0:01:29.5]} 18... Bb3 {[%clk 0:01:46.4]} 19. Rc5
{[%clk 0:01:19.5]} 19... Be6 {[%clk 0:01:28.4]} 20. Rca5 {[%clk 0:01:07]} 20...
Bc4+ {[%clk 0:01:27.4]} 21. Ke1 {[%clk 0:01:05]} 21... Bb5 {[%clk 0:01:27.3]}
22. e5 {[%clk 0:01:03.2]} 22... e6 {[%clk 0:01:21.4]} 23. Ng5 {[%clk 0:01:00.6]}
23... Bf8 {[%clk 0:01:17.6]} 24. Rb1 {[%clk 0:01:00.3]} 24... Be7 {[%clk
0:01:09]} 25. Ne4 {[%clk 0:00:59.9]} 25... Bd3 {[%clk 0:01:08.7]} 26. Rb7 {[%clk
0:00:55.7]} 26... Bxe4 {[%clk 0:01:02.7]} 27. Rxe7 {[%clk 0:00:55.5]} 27... Bxg2
{[%clk 0:01:02.7]} 28. Rc5 {[%clk 0:00:49]} 28... Rdc8 {[%clk 0:01:02]} 29.
Rxc8+ {[%clk 0:00:47.5]} 29... Rxc8 {[%clk 0:01:02.9]} 30. Ra7 {[%clk
0:00:46.4]} 30... Ra8 {[%clk 0:01:00.3]} 31. Rxa8+ {[%clk 0:00:42.5]} 31... Bxa8
{[%clk 0:01:01.2]} 32. Bh6 {[%clk 0:00:38.4]} 32... a5 {[%clk 0:01:00.5]} 33.
Kd2 {[%clk 0:00:38.2]} 33... a4 {[%clk 0:01:00.9]} 34. Kc3 {[%clk 0:00:38.2]}
34... Bd5 {[%clk 0:00:59.6]} 35. Kb4 {[%clk 0:00:38.6]} 35... Bb3 {[%clk
0:00:59.4]} 36. Ka3 {[%clk 0:00:38.3]} 36... f5 {[%clk 0:00:55.6]} 37. exf6
{[%clk 0:00:36.2]} 37... Kf7 {[%clk 0:00:56.1]} 38. Bg5 {[%clk 0:00:35.6]} 38...
h6 {[%clk 0:00:55.1]} 39. Bxh6 {[%clk 0:00:35]} 39... Kxf6 {[%clk 0:00:55.6]}
40. f3 {[%clk 0:00:34.2]} 40... Kf5 {[%clk 0:00:55.9]} 41. Be3 {[%clk
0:00:32.5]} 41... Kf6 {[%clk 0:00:55.5]} 42. Bf4 {[%clk 0:00:31.8]} 42... Ke7
{[%clk 0:00:55.9]} 43. Kb4 {[%clk 0:00:29.3]} 43... Kd7 {[%clk 0:00:56]} 44. Be5
{[%clk 0:00:28.2]} 44... Kc6 {[%clk 0:00:55.5]} 45. Bg7 {[%clk 0:00:28.2]} 45...
Kd5 {[%clk 0:00:55.8]} 46. Bf6 {[%clk 0:00:27.7]} 46... Bd1 {[%clk 0:00:56.7]}
47. Be5 {[%clk 0:00:26.1]} 47... Kc6 {[%clk 0:00:56.3]} 48. Bf6 {[%clk
0:00:25.9]} 48... Kd7 {[%clk 0:00:57.2]} 49. Be5 {[%clk 0:00:25.9]} 49... Ke8
{[%clk 0:00:58.1]} 50. Bf6 {[%clk 0:00:26.2]} 50... Kf7 {[%clk 0:00:59]} 51. Be5
{[%clk 0:00:25.1]} 51... Ke7 {[%clk 0:00:59.9]} 52. Bg7 {[%clk 0:00:25.1]} 52...
Kf7 {[%clk 0:00:59.7]} 53. Be5 {[%clk 0:00:25.2]} 53... Kg8 {[%clk 0:01:00.6]}
54. Bf6 {[%clk 0:00:24.4]} 54... Kh7 {[%clk 0:01:01.5]} 55. Bg5 {[%clk
0:00:24.8]} 55... Kg8 {[%clk 0:01:02.4]} 56. Bf6 {[%clk 0:00:25.2]} 56... Kf7
{[%clk 0:01:00.6]} 57. Be5 {[%clk 0:00:24.8]} 1/2-1/2